fUSD/lending_fUSD_20260508
["ID","MTS","AMOUNT","RATE_DAILY","PERIOD"]
[421818062,1778188243000,-612.93,0.00014999,2]
[421818064,1778188243000,-648.58,0.00014999,2]
[421818059,1778188243000,-612.93,0.00014999,2]
[421818068,1778188243000,-648.58,0.00014999,2]
[421818057,1778188243000,-612.93,0.00014999,2]
[421818067,1778188243000,-648.58,0.00014999,2]
[421818056,1778188243000,-612.93,0.00014999,2]
[421818063,1778188243000,-648.58,0.00014999,2]
[421818060,1778188243000,-612.93,0.00014999,2]
[421818066,1778188243000,-648.58,0.00014999,2]
[421818058,1778188243000,-612.93,0.00014999,2]
[421818051,1778188243000,-500.0,0.00014999,2]
[421818050,1778188243000,-500.0,0.00014999,2]
[421818052,1778188243000,-500.0,0.00014999,2]
[421818055,1778188243000,-612.93,0.00014999,2]
[421818053,1778188243000,-500.0,0.00014999,2]
[421818069,1778188243000,-648.58,0.00014999,2]
[421818065,1778188243000,-648.58,0.00014999,2]
[421818071,1778188243000,-500.0,0.00014999,2]
[421818054,1778188243000,-500.0,0.00014999,2]
[421818073,1778188243000,-500.0,0.00014999,2]
[421818079,1778188243000,-500.0,0.00014999,2]
[421818097,1778188243000,-1758527.17046113,0.00015,2]
[421818095,1778188243000,-1499.83754391,0.00015,2]
[421818096,1778188243000,-978.0,0.00015,2]
[421818089,1778188243000,-151.0,0.00015,2]
[421818088,1778188243000,-497.45,0.00015,2]
[421818086,1778188243000,-1779842.4882808,0.00015,2]
[421818087,1778188243000,-2502.93493034,0.00015,14]
[421818090,1778188243000,-151.0,0.00015,2]
[421818093,1778188243000,-2046346.1351146,0.00015,2]
[421818094,1778188243000,-57788.13678299,0.00015,2]
[421818098,1778188243000,204.4336808,0.000119,2]
[421818091,1778188243000,-151.0,0.00015,2]
[421818072,1778188243000,-500.0,0.00014999,2]
[421818084,1778188243000,-500.0,0.00014999,2]
[421818075,1778188243000,-500.0,0.00014999,2]
[421818076,1778188243000,-500.0,0.00014999,2]
[421818074,1778188243000,-500.0,0.00014999,2]
[421818078,1778188243000,-500.0,0.00014999,2]
[421818082,1778188243000,-500.0,0.00014999,2]
[421818092,1778188243000,-151.0,0.00015,2]
[421818085,1778188243000,-500.0,0.00014999,2]
[421818083,1778188243000,-500.0,0.00014999,2]
[421818077,1778188243000,-500.0,0.00014999,2]
[421818101,1778188245000,-151.0,0.00014999,2]
[421818102,1778188245000,-5378.0,0.00015,2]
[421818103,1778188246000,-215231.91904118,0.00015,2]
[421818104,1778188246000,-302.187178,0.00015,2]
[421818106,1778188246000,-257.72629871,0.00015,2]
[421818105,1778188246000,-2941.7825,0.00015,2]
[421818107,1778188246000,-951.46598943,0.00015,2]
[421818109,1778188246000,-4504.83531409,0.00015,2]
[421818110,1778188246000,-1261.267356,0.00015,2]
[421818108,1778188246000,-439.41047523,0.00015,2]
[421818116,1778188251000,-2058.23452625,0.00015,2]
[421818117,1778188251000,-4573.54368736,0.00015,2]
[421818592,1778188256000,157.81827566,8.727e-05,2]
[421818570,1778188256000,1000.0,0.00022,30]
[421818617,1778188256000,860.52,9.186e-05,2]
[421818643,1778188256000,860.52,9.645e-05,2]
[421818595,1778188256000,702.70172434,8.727e-05,2]
[421818682,1778188257000,860.52,0.00011482,2]
[421818681,1778188257000,860.52,0.00011023,2]
[421818680,1778188257000,860.52,0.00010564,2]
[421818674,1778188257000,860.52,0.00010104,2]
[421818683,1778188258000,860.52,0.00011942,2]
[421818684,1778188365000,1000.0,0.00022,30]
[421818685,1778188437000,2953.63764896,0.00030137,120]
[421818686,1778188483000,500.0,0.00029945,120]
[421818687,1778188639000,157.65,0.00010717,2]
[421818690,1778188876000,-155.81,0.00011999,2]
[421818691,1778188876000,-155.81,0.00011999,2]
[421818699,1778189398000,-320.70509758,0.00011999,2]
[421818711,1778189431000,-300.48,0.00012599,2]
[421818710,1778189431000,-251.33520074,0.00012499,2]
[421818712,1778189431000,-860.52,0.0001286,2]
[421818709,1778189431000,-152.0,0.00012479,7]
[421818707,1778189431000,-758.92349125,0.00012401,2]
[421818708,1778189431000,-152.0,0.00012479,7]
[421818705,1778189431000,-569.58490242,0.00011999,2]
[421818706,1778189431000,-101.59650875,0.00012401,2]
[421818755,1778189432000,-500.0,0.00013424,2]
[421818754,1778189432000,-500.0,0.00013424,2]
[421818753,1778189432000,-374.83062335,0.00013424,2]
[421818756,1778189432000,-500.0,0.00013424,2]
[421818752,1778189432000,-500.0,0.00013424,2]
[421818743,1778189432000,-500.0,0.00013424,2]
[421818746,1778189432000,-500.0,0.00013424,2]
[421818747,1778189432000,-330.79009424,0.00013424,2]
[421818745,1778189432000,-500.0,0.00013424,2]
[421818751,1778189432000,-500.0,0.00013424,2]
[421818741,1778189432000,-500.0,0.00013424,2]
[421818744,1778189432000,-500.0,0.00013424,2]
[421818757,1778189432000,-500.0,0.00013424,2]
[421818762,1778189432000,-502.17716493,0.00013424,2]
[421818759,1778189432000,-500.0,0.00013424,2]
[421818768,1778189432000,-500.0,0.00013424,2]
[421818760,1778189432000,-500.0,0.00013424,2]
[421818748,1778189432000,-500.0,0.00013424,2]
[421818767,1778189432000,-500.0,0.00013424,2]
[421818763,1778189432000,-150.0,0.00013424,2]
[421818766,1778189432000,-228.12085053,0.00013424,2]
[421818769,1778189432000,-500.0,0.00013424,2]
[421818758,1778189432000,-504.83208442,0.00013424,2]
[421818764,1778189432000,-150.0,0.00013424,2]
[421818765,1778189432000,-150.0,0.00013424,2]
[421818770,1778189432000,-500.0,0.00013424,2]
[421818780,1778189432000,-500.0,0.00013424,2]
[421818761,1778189432000,-150.0,0.00013424,2]
[421818742,1778189432000,-500.0,0.00013424,2]
[421818717,1778189432000,-1200.0,0.00013198,2]
[421818739,1778189432000,-500.0,0.00013424,2]
[421818784,1778189432000,-518.00297774,0.00013424,2]
[421818713,1778189432000,-998.04,0.00013116,2]
[421818715,1778189432000,-2947.7,0.00013141,2]
[421818725,1778189432000,-1000.0,0.00013341,2]
[421818714,1778189432000,-150.0,0.0001312,2]
[421818719,1778189432000,-200.0,0.00013249,2]
[421818716,1778189432000,-385.35,0.00013196,2]
[421818718,1778189432000,-3138.9,0.00013224,2]
[421818721,1778189432000,-176.99,0.00013286,2]
[421818720,1778189432000,-150.0,0.00013259,2]
[421818722,1778189432000,-978.0,0.00013305,2]
[421818723,1778189432000,-500.0,0.0001331,2]
[421818724,1778189432000,-860.52,0.00013319,2]
[421818740,1778189432000,-500.0,0.00013424,2]
[421818726,1778189432000,-166.14,0.0001336,2]
[421818727,1778189432000,-176.15,0.00013393,2]
[421818733,1778189432000,-500.0,0.00013424,2]
[421818734,1778189432000,-500.0,0.00013424,2]
[421818736,1778189432000,-500.0,0.00013424,2]
[421818731,1778189432000,-500.0,0.00013424,2]
[421818728,1778189432000,-2000.0,0.00013414,2]
[421818730,1778189432000,-500.0,0.00013424,2]
[421818735,1778189432000,-500.0,0.00013424,2]
[421818732,1778189432000,-500.0,0.00013424,2]
[421818729,1778189432000,-150.0,0.00013423,2]
[421818749,1778189432000,-500.0,0.00013424,2]
[421818738,1778189432000,-500.0,0.00013424,2]
[421818750,1778189432000,-500.0,0.00013424,2]
[421818737,1778189432000,-500.0,0.00013424,2]
[421818773,1778189432000,-500.0,0.00013424,2]
[421818786,1778189432000,-150.0,0.00013488,2]
[421818783,1778189432000,-500.0,0.00013424,2]
[421818809,1778189432000,-500.0,0.00014178,2]
[421818806,1778189432000,-166.66,0.0001411,2]
[421818808,1778189432000,-500.0,0.00014178,2]
[421818812,1778189432000,-860.52,0.00014238,2]
[421818814,1778189432000,-711.89,0.000143,2]
[421818816,1778189432000,-200.0,0.000143,5]
[421818818,1778189432000,-166.66,0.00014384,2]
[421818819,1778189432000,-400.0,0.000144,5]
[421818820,1778189432000,-150.0,0.00014452,2]
[421818813,1778189432000,-166.66,0.00014247,2]
[421818815,1778189432000,-950.8,0.000143,2]
[421818821,1778189432000,-150.0,0.00014452,2]
[421818817,1778189432000,-500.0,0.0001431,2]
[421818823,1778189432000,-296.13355034,0.00014452,2]
[421818824,1778189432000,-175.68,0.00014497,2]
[421818825,1778189432000,-600.0,0.000145,5]
[421818827,1778189432000,-255.0,0.00014537,2]
[421818826,1778189432000,-1680.0,0.00014518,2]
[421818837,1778189432000,-385.35,0.00014846,2]
[421818831,1778189432000,-860.52,0.00014697,2]
[421818833,1778189432000,-500.0,0.00014713,2]
[421818829,1778189432000,-800.0,0.000146,5]
[421818835,1778189432000,-200.0,0.000148,5]
[421818836,1778189432000,-385.3783,0.0001483,2]
[421818828,1778189432000,-497.84854107,0.00014584,2]
[421818832,1778189432000,-1000.0,0.000147,5]
[421818830,1778189432000,-166.14,0.00014696,2]
[421818805,1778189432000,-500.0,0.00014036,2]
[421818807,1778189432000,-500.0,0.00014178,2]
[421818822,1778189432000,-150.0,0.00014452,2]
[421818803,1778189432000,-500.0,0.00013924,2]
[421818782,1778189432000,-500.0,0.00013424,2]
[421818781,1778189432000,-500.0,0.00013424,2]
[421818774,1778189432000,-500.0,0.00013424,2]
[421818776,1778189432000,-500.0,0.00013424,2]
[421818778,1778189432000,-500.0,0.00013424,2]
[421818804,1778189432000,-166.66,0.00013973,2]
[421818779,1778189432000,-500.0,0.00013424,2]
[421818785,1778189432000,-500.0,0.00013488,2]
[421818787,1778189432000,-150.0,0.00013488,2]
[421818788,1778189432000,-150.0,0.00013488,2]
[421818789,1778189432000,-150.0,0.00013488,2]
[421818794,1778189432000,-1743.449,0.00013697,2]
[421818793,1778189432000,-2080.17592889,0.0001369,2]
[421818792,1778189432000,-150.00000001,0.00013488,2]
[421818777,1778189432000,-500.0,0.00013424,2]
[421818798,1778189432000,-417.78639595,0.00013739,2]
[421818797,1778189432000,-166.78,0.00013727,2]
[421818802,1778189432000,-166.66,0.00013836,2]
[421818811,1778189432000,-1860.16303117,0.00014238,2]
[421818801,1778189432000,-300.48,0.00013799,2]
[421818810,1778189432000,-557.886,0.00014178,2]
[421818799,1778189432000,-500.0,0.00013762,2]
[421818772,1778189432000,-500.0,0.00013424,2]
[421818796,1778189432000,-166.66,0.00013699,2]
[421818834,1778189432000,-998.04,0.00014755,2]
[421818791,1778189432000,-150.0,0.00013488,2]
[421818790,1778189432000,-150.0,0.00013488,2]
[421818795,1778189432000,-194.298,0.00013697,2]
[421818800,1778189432000,-860.52,0.00013779,2]
[421818853,1778189433000,-1233.23991942,0.000149,2]
[421818854,1778189433000,-637.24020069,0.000149,2]
[421818849,1778189433000,-604.8445008,0.000149,2]
[421818846,1778189433000,-637.24020069,0.000149,2]
[421818847,1778189433000,-637.24020069,0.000149,2]
[421818844,1778189433000,-637.24020069,0.00014899,2]
[421818848,1778189433000,-200.85086131,0.000149,2]
[421818843,1778189433000,-637.24020069,0.00014899,2]
[421818841,1778189433000,-637.24020069,0.00014898,2]
[421818842,1778189433000,-637.24020069,0.00014899,2]
[421818839,1778189433000,-637.24020072,0.00014898,2]
[421818850,1778189433000,-200.0,0.000149,5]
[421818852,1778189433000,-352.16181776,0.000149,2]
[421818840,1778189433000,-637.24020069,0.00014898,2]
[421818838,1778189433000,-166.78,0.0001486,2]
[421818865,1778189433000,-2453.2936746,0.00014996,2]
[421818845,1778189433000,-637.24020069,0.00014899,2]
[421818851,1778189433000,-682.27196926,0.000149,2]
[421818864,1778189433000,-4473.17,0.00014989,2]
[421818855,1778189433000,-431.50241124,0.000149,2]
[421818856,1778189433000,-708.48983,0.0001491,2]
[421818875,1778189433000,-481.14176284,0.00014998,2]
[421818874,1778189433000,-330.24198854,0.00014998,2]
[421818872,1778189433000,-1067.75136231,0.00014998,2]
[421818867,1778189433000,-500.0,0.00014998,2]
[421818870,1778189433000,-3.7142494,0.00014998,2]
[421818871,1778189433000,-1064.03711291,0.00014998,2]
[421818869,1778189433000,-500.0,0.00014998,2]
[421818873,1778189433000,-316.30076658,0.00014998,2]
[421818866,1778189433000,-242.916,0.00014998,2]
[421818862,1778189433000,-321.77,0.00014985,2]
[421818857,1778189433000,-708.48984,0.0001491,2]
[421818863,1778189433000,-444.27,0.00014985,2]
[421818858,1778189433000,-708.48983,0.0001491,2]
[421818859,1778189433000,-708.48983,0.0001491,2]
[421818861,1778189433000,-708.48983,0.0001491,2]
[421818868,1778189433000,-1067.75136231,0.00014998,2]
[421818860,1778189433000,-708.48983,0.0001491,2]
[421818921,1778189438000,-1060.38755981,0.00014998,2]
[421818918,1778189438000,-1060.38755981,0.00014998,2]
[421818915,1778189438000,-1060.38755981,0.00014998,2]
[421818911,1778189438000,-1060.38755981,0.00014998,2]
[421818912,1778189438000,-1060.38755981,0.00014998,2]
[421818914,1778189438000,-1060.38755981,0.00014998,2]
[421818922,1778189438000,-1060.38755981,0.00014998,2]
[421818910,1778189438000,-1060.38755981,0.00014998,2]
[421818906,1778189438000,-1060.38755981,0.00014998,2]
[421818920,1778189438000,-1060.38755981,0.00014998,2]
[421818913,1778189438000,-1060.38755981,0.00014998,2]
[421818916,1778189438000,-1060.38755981,0.00014998,2]
[421818928,1778189438000,-1060.38755981,0.00014998,2]
[421818917,1778189438000,-1060.38755981,0.00014998,2]
[421818919,1778189438000,-1060.38755981,0.00014998,2]
[421818926,1778189438000,-1060.38755981,0.00014998,2]
[421818924,1778189438000,-1060.38755981,0.00014998,2]
[421818935,1778189438000,-1060.38755981,0.00014998,2]
[421818929,1778189438000,-1060.38755981,0.00014998,2]
[421818939,1778189438000,-1042.71443382,0.00014998,2]
[421818902,1778189438000,-1060.38755981,0.00014998,2]
[421818937,1778189438000,-1060.38755981,0.00014998,2]
[421818931,1778189438000,-1060.38755981,0.00014998,2]
[421818940,1778189438000,-1042.71443382,0.00014998,2]
[421818943,1778189438000,-1042.71443382,0.00014998,2]
[421818933,1778189438000,-1060.38755981,0.00014998,2]
[421818923,1778189438000,-1060.38755981,0.00014998,2]
[421818905,1778189438000,-1060.38755981,0.00014998,2]
[421818897,1778189438000,-1060.38755981,0.00014998,2]
[421818898,1778189438000,-1060.38755981,0.00014998,2]
[421818879,1778189438000,-1060.38755981,0.00014998,2]
[421818880,1778189438000,-1060.38755981,0.00014998,2]
[421818878,1778189438000,-586.60959947,0.00014998,2]
[421818881,1778189438000,-1060.38755981,0.00014998,2]
[421818942,1778189438000,-1042.71443382,0.00014998,2]
[421818882,1778189438000,-1060.38755981,0.00014998,2]
[421818884,1778189438000,-1060.38755981,0.00014998,2]
[421818883,1778189438000,-1060.38755981,0.00014998,2]
[421818885,1778189438000,-807.80046427,0.00014998,2]
[421818887,1778189438000,-1060.38755981,0.00014998,2]
[421818893,1778189438000,-1060.38755981,0.00014998,2]
[421818890,1778189438000,-1060.38755981,0.00014998,2]
[421818892,1778189438000,-1060.38755981,0.00014998,2]
[421818895,1778189438000,-1060.38755981,0.00014998,2]
[421818886,1778189438000,-252.58709554,0.00014998,2]
[421818888,1778189438000,-1060.38755981,0.00014998,2]
[421818889,1778189438000,-1060.38755981,0.00014998,2]
[421818891,1778189438000,-1060.38755981,0.00014998,2]
[421818896,1778189438000,-1060.38755981,0.00014998,2]
[421818894,1778189438000,-1060.38755981,0.00014998,2]
[421818900,1778189438000,-1060.38755981,0.00014998,2]
[421818901,1778189438000,-1060.38755981,0.00014998,2]
[421818908,1778189438000,-1060.38755981,0.00014998,2]
[421818899,1778189438000,-1060.38755981,0.00014998,2]
[421818904,1778189438000,-1060.38755981,0.00014998,2]
[421818909,1778189438000,-1060.38755981,0.00014998,2]
[421818903,1778189438000,-1060.38755981,0.00014998,2]
[421818907,1778189438000,-1060.38755981,0.00014998,2]
[421818944,1778189438000,-1042.71443382,0.00014998,2]
[421819001,1778189438000,-500.0,0.00014999,2]
[421818945,1778189438000,-1042.71443382,0.00014998,2]
[421818975,1778189438000,-500.0,0.00014998,2]
[421818977,1778189438000,-500.0,0.00014999,2]
[421818978,1778189438000,-500.0,0.00014999,2]
[421818979,1778189438000,-500.0,0.00014999,2]
[421818980,1778189438000,-500.0,0.00014999,2]
[421818981,1778189438000,-500.0,0.00014999,2]
[421818982,1778189438000,-500.0,0.00014999,2]
[421818988,1778189438000,-500.0,0.00014999,2]
[421818985,1778189438000,-500.0,0.00014999,2]
[421818987,1778189438000,-500.0,0.00014999,2]
[421818993,1778189438000,-500.0,0.00014999,2]
[421818986,1778189438000,-500.0,0.00014999,2]
[421818992,1778189438000,-540.2,0.00014999,2]
[421818996,1778189438000,-500.0,0.00014999,2]
[421818989,1778189438000,-500.0,0.00014999,2]
[421818998,1778189438000,-500.0,0.00014999,2]
[421818991,1778189438000,-500.0,0.00014999,2]
[421818990,1778189438000,-500.0,0.00014999,2]
[421818994,1778189438000,-500.0,0.00014999,2]
[421818997,1778189438000,-500.0,0.00014999,2]
[421818995,1778189438000,-500.0,0.00014999,2]
[421818999,1778189438000,-500.0,0.00014999,2]
[421819000,1778189438000,-500.0,0.00014999,2]
[421819003,1778189438000,-500.0,0.00014999,2]
[421819004,1778189438000,-500.0,0.00014999,2]
[421819002,1778189438000,-500.0,0.00014999,2]
[421819005,1778189438000,-500.0,0.00014999,2]
[421818974,1778189438000,-1042.71443384,0.00014998,2]
[421818976,1778189438000,-500.0,0.00014999,2]
[421818946,1778189438000,-1042.71443382,0.00014998,2]
[421818984,1778189438000,-500.0,0.00014999,2]
[421818972,1778189438000,-1042.71443384,0.00014998,2]
[421818956,1778189438000,-1042.71443382,0.00014998,2]
[421818950,1778189438000,-1042.71443382,0.00014998,2]
[421818951,1778189438000,-1042.71443382,0.00014998,2]
[421818957,1778189438000,-1042.71443382,0.00014998,2]
[421818947,1778189438000,-1042.71443382,0.00014998,2]
[421818955,1778189438000,-1042.71443382,0.00014998,2]
[421818958,1778189438000,-1042.71443382,0.00014998,2]
[421818952,1778189438000,-1042.71443382,0.00014998,2]
[421818954,1778189438000,-1042.71443382,0.00014998,2]
[421818948,1778189438000,-1042.71443382,0.00014998,2]
[421818953,1778189438000,-1042.71443382,0.00014998,2]
[421818961,1778189438000,-1042.71443382,0.00014998,2]
[421818949,1778189438000,-1042.71443382,0.00014998,2]
[421818962,1778189438000,-1042.71443382,0.00014998,2]
[421818983,1778189438000,-500.0,0.00014999,2]
[421818959,1778189438000,-1042.71443382,0.00014998,2]
[421818973,1778189438000,-1042.71443384,0.00014998,2]
[421818966,1778189438000,-1042.71443382,0.00014998,2]
[421818968,1778189438000,-1042.71443382,0.00014998,2]
[421818970,1778189438000,-1042.71443382,0.00014998,2]
[421818971,1778189438000,-182.94919501,0.00014998,2]
[421818960,1778189438000,-1042.71443382,0.00014998,2]
[421818965,1778189438000,-1042.71443382,0.00014998,2]
[421818969,1778189438000,-1042.71443382,0.00014998,2]
[421818964,1778189438000,-1042.71443382,0.00014998,2]
[421818963,1778189438000,-1042.71443382,0.00014998,2]
[421818967,1778189438000,-1042.71443382,0.00014998,2]
[421819059,1778189439000,-500.0,0.00014999,2]
[421819049,1778189439000,-500.0,0.00014999,2]
[421819048,1778189439000,-500.0,0.00014999,2]
[421819060,1778189439000,-500.0,0.00014999,2]
[421819046,1778189439000,-500.0,0.00014999,2]
[421819040,1778189439000,-527.55870549,0.00014999,2]
[421819045,1778189439000,-500.0,0.00014999,2]
[421819042,1778189439000,-500.0,0.00014999,2]
[421819043,1778189439000,-500.0,0.00014999,2]
[421819044,1778189439000,-500.0,0.00014999,2]
[421819041,1778189439000,-500.0,0.00014999,2]
[421819051,1778189439000,-500.0,0.00014999,2]
[421819047,1778189439000,-500.0,0.00014999,2]
[421819050,1778189439000,-500.0,0.00014999,2]
[421819063,1778189439000,-574.77187944,0.00014999,2]
[421819052,1778189439000,-500.0,0.00014999,2]
[421819054,1778189439000,-500.0,0.00014999,2]
[421819058,1778189439000,-500.0,0.00014999,2]
[421819056,1778189439000,-500.0,0.00014999,2]
[421819053,1778189439000,-500.0,0.00014999,2]
[421819057,1778189439000,-500.0,0.00014999,2]
[421819061,1778189439000,-500.0,0.00014999,2]
[421819065,1778189439000,-500.0,0.00014999,2]
[421819062,1778189439000,-500.0,0.00014999,2]
[421819074,1778189439000,-500.0,0.00014999,2]
[421819066,1778189439000,-500.0,0.00014999,2]
[421819069,1778189439000,-500.0,0.00014999,2]
[421819036,1778189439000,-527.35,0.00014999,2]
[421819072,1778189439000,-500.0,0.00014999,2]
[421819055,1778189439000,-500.0,0.00014999,2]
[421819038,1778189439000,-527.35,0.00014999,2]
[421819019,1778189439000,-527.35,0.00014999,2]
[421819037,1778189439000,-527.35,0.00014999,2]
[421819010,1778189439000,-500.0,0.00014999,2]
[421819009,1778189439000,-500.0,0.00014999,2]
[421819068,1778189439000,-500.0,0.00014999,2]
[421819006,1778189439000,-500.0,0.00014999,2]
[421819007,1778189439000,-500.0,0.00014999,2]
[421819008,1778189439000,-500.0,0.00014999,2]
[421819013,1778189439000,-527.35,0.00014999,2]
[421819023,1778189439000,-527.35,0.00014999,2]
[421819025,1778189439000,-527.35,0.00014999,2]
[421819024,1778189439000,-527.35,0.00014999,2]
[421819012,1778189439000,-522.02981736,0.00014999,2]
[421819014,1778189439000,-527.35,0.00014999,2]
[421819015,1778189439000,-527.35,0.00014999,2]
[421819020,1778189439000,-527.35,0.00014999,2]
[421819016,1778189439000,-527.35,0.00014999,2]
[421819017,1778189439000,-527.35,0.00014999,2]
[421819021,1778189439000,-527.35,0.00014999,2]
[421819022,1778189439000,-527.35,0.00014999,2]
[421819018,1778189439000,-527.35,0.00014999,2]
[421819026,1778189439000,-527.35,0.00014999,2]
[421819028,1778189439000,-527.35,0.00014999,2]
[421819029,1778189439000,-500.0,0.00014999,2]
[421819027,1778189439000,-500.0,0.00014999,2]
[421819039,1778189439000,-527.35,0.00014999,2]
[421819031,1778189439000,-500.0,0.00014999,2]
[421819032,1778189439000,-527.35,0.00014999,2]
[421819034,1778189439000,-527.35,0.00014999,2]
[421819035,1778189439000,-527.35,0.00014999,2]
[421819030,1778189439000,-527.35,0.00014999,2]
[421819033,1778189439000,-474.54657793,0.00014999,2]
[421819011,1778189439000,-500.0,0.00014999,2]
[421819071,1778189439000,-500.0,0.00014999,2]
[421819064,1778189439000,-500.0,0.00014999,2]
[421819104,1778189439000,-513.46,0.00014999,2]
[421819110,1778189439000,-513.46,0.00014999,2]
[421819107,1778189439000,-513.46,0.00014999,2]
[421819108,1778189439000,-513.46,0.00014999,2]
[421819109,1778189439000,-513.46,0.00014999,2]
[421819111,1778189439000,-513.46,0.00014999,2]
[421819112,1778189439000,-513.46,0.00014999,2]
[421819114,1778189439000,-513.46,0.00014999,2]
[421819113,1778189439000,-513.46,0.00014999,2]
[421819115,1778189439000,-513.46,0.00014999,2]
[421819116,1778189439000,-513.46,0.00014999,2]
[421819126,1778189439000,-513.46,0.00014999,2]
[421819123,1778189439000,-513.46,0.00014999,2]
[421819122,1778189439000,-513.46,0.00014999,2]
[421819127,1778189439000,-513.468324,0.00014999,2]
[421819128,1778189439000,-500.0,0.00014999,2]
[421819118,1778189439000,-513.46,0.00014999,2]
[421819121,1778189439000,-513.46,0.00014999,2]
[421819124,1778189439000,-513.46,0.00014999,2]
[421819117,1778189439000,-513.46,0.00014999,2]
[421819120,1778189439000,-513.46,0.00014999,2]
[421819125,1778189439000,-513.46,0.00014999,2]
[421819119,1778189439000,-513.46,0.00014999,2]
[421819130,1778189439000,-500.0,0.00014999,2]
[421819129,1778189439000,-500.0,0.00014999,2]
[421819131,1778189439000,-500.0,0.00014999,2]
[421819133,1778189439000,-500.0,0.00014999,2]
[421819073,1778189439000,-500.0,0.00014999,2]
[421819134,1778189439000,-500.0,0.00014999,2]
[421819106,1778189439000,-513.46,0.00014999,2]
[421819105,1778189439000,-513.46,0.00014999,2]
[421819135,1778189439000,-500.0,0.00014999,2]
[421819102,1778189439000,-500.0,0.00014999,2]
[421819103,1778189439000,-522.28416822,0.00014999,2]
[421819070,1778189439000,-500.0,0.00014999,2]
[421819076,1778189439000,-500.0,0.00014999,2]
[421819086,1778189439000,-500.0,0.00014999,2]
[421819088,1778189439000,-500.0,0.00014999,2]
[421819078,1778189439000,-500.0,0.00014999,2]
[421819077,1778189439000,-500.0,0.00014999,2]
[421819087,1778189439000,-490.92273679,0.00014999,2]
[421819075,1778189439000,-500.0,0.00014999,2]
[421819081,1778189439000,-500.0,0.00014999,2]
[421819079,1778189439000,-500.0,0.00014999,2]
[421819083,1778189439000,-500.0,0.00014999,2]
[421819080,1778189439000,-500.0,0.00014999,2]
[421819084,1778189439000,-500.0,0.00014999,2]
[421819067,1778189439000,-640.39212556,0.00014999,2]
[421819082,1778189439000,-500.0,0.00014999,2]
[421819085,1778189439000,-500.0,0.00014999,2]
[421819099,1778189439000,-500.0,0.00014999,2]
[421819094,1778189439000,-500.0,0.00014999,2]
[421819091,1778189439000,-500.0,0.00014999,2]
[421819092,1778189439000,-500.0,0.00014999,2]
[421819097,1778189439000,-500.0,0.00014999,2]
[421819100,1778189439000,-500.0,0.00014999,2]
[421819101,1778189439000,-500.0,0.00014999,2]
[421819093,1778189439000,-500.0,0.00014999,2]
[421819095,1778189439000,-500.0,0.00014999,2]
[421819098,1778189439000,-500.0,0.00014999,2]
[421819090,1778189439000,-500.0,0.00014999,2]
[421819089,1778189439000,-500.0,0.00014999,2]
[421819096,1778189439000,-500.0,0.00014999,2]
[421819178,1778189440000,-500.0,0.00014999,2]
[421819172,1778189440000,-529.22196783,0.00014999,2]
[421819177,1778189440000,-500.0,0.00014999,2]
[421819168,1778189440000,-500.0,0.00014999,2]
[421819175,1778189440000,-500.0,0.00014999,2]
[421819171,1778189440000,-500.0,0.00014999,2]
[421819170,1778189440000,-500.0,0.00014999,2]
[421819173,1778189440000,-500.0,0.00014999,2]